[Event "16th EWICC 2015"]
[Site "Kutaisi"]
[Date "2015.06.02"]
[Round "8"]
[White "Melia, Salome"]
[Black "Choladze, Mariam"]
[Result "1/2-1/2"]
[ECO "B42"]
[WhiteElo "2452"]
[BlackElo "1989"]
[Annotator "Robot 11"]
[PlyCount "118"]
[EventDate "2015.??.??"]
[EventCountry "GEO"]
[TimeControl "900+10"]

1. e4 {[%emt 0:00:04]} c5 {[%emt 0:00:01]} 2. Nf3 {[%emt 0:00:02]} e6 {[%emt 0:
00:06]} 3. d4 {[%emt 0:00:03]} cxd4 {[%emt 0:00:02]} 4. Nxd4 {[%emt 0:00:02]}
a6 {[%emt 0:00:01]} 5. Bd3 {[%emt 0:00:18]} Qc7 {[%emt 0:00:02]} 6. O-O {[%emt
0:00:15]} Nf6 {[%emt 0:00:04]} 7. Qe2 {[%emt 0:00:09]} d6 {[%emt 0:00:01]} 8.
c4 {[%emt 0:00:01]} g6 {[%emt 0:00:05]} 9. Nc3 {[%emt 0:00:36]} Bg7 {[%emt 0:
00:01]} 10. Nf3 {[%emt 0:00:01]} O-O {[%emt 0:00:11]} 11. Bf4 {[%emt 0:00:11]}
Nc6 {[%emt 0:00:14]} 12. h3 {[%emt 0:00:32]} Nd7 {[%emt 0:00:09]} 13. Rac1 {
[%emt 0:00:03]} Bxc3 {[%emt 0:00:10]} 14. Rxc3 {[%emt 0:00:17]} e5 {[%emt 0:00:
01]} 15. Bh6 {[%emt 0:00:10]} Rd8 {[%emt 0:00:09]} 16. Nh2 {[%emt 0:01:06]} Nd4
{[%emt 0:01:04]} 17. Qe3 {[%emt 0:00:07]} f6 {[%emt 0:02:01]} 18. Ng4 {[%emt 0:
00:50]} Re8 {[%emt 0:01:04]} 19. Qg3 {[%emt 0:01:34]} Qd8 {[%emt 0:00:24]} 20.
f4 {[%emt 0:01:45]} Nc5 {[%emt 0:05:16]} 21. Kh2 {[%emt 0:04:20]} Bxg4 {[%emt
0:00:11]} 22. Qxg4 {[%emt 0:00:47]} Na4 {[%emt 0:03:30]} 23. f5 {[%emt 0:01:00]
} Qd7 {[%emt 0:00:17]} 24. Ra3 {[%emt 0:01:54]} Nxb2 {[%emt 0:01:33]} 25. fxg6
{[%emt 0:00:31]} Qxg4 {[%emt 0:00:06]} 26. hxg4 {[%emt 0:00:04]} hxg6 {[%emt 0:
00:49]} 27. Rxf6 {[%emt 0:00:01]} Re6 {[%emt 0:00:05]} 28. Rf2 {[%emt 0:01:01]}
Nxd3 {[%emt 0:00:04]} 29. Rxd3 {[%emt 0:00:01]} Rc8 {[%emt 0:00:17]} 30. Rh3 {
[%emt 0:00:59]} b5 {[%emt 0:01:23]} 31. cxb5 {[%emt 0:00:23]} Nxb5 {[%emt 0:00:
01]} 32. Bg5 {[%emt 0:00:23]} Kg7 {[%emt 0:00:01]} 33. Bh6+ {[%emt 0:00:20]}
Kg8 {[%emt 0:00:01]} 34. Bg5 {[%emt 0:00:30]} Kg7 {[%emt 0:00:03]} 35. Rhf3 {
[%emt 0:00:12]} Rc7 {[%emt 0:01:07]} 36. Bd2 {[%emt 0:00:14]} Nd4 {[%emt 0:00:
04]} 37. Rf8 {[%emt 0:00:03]} Ree7 {[%emt 0:00:12]} 38. Bg5 {[%emt 0:00:07]}
Red7 {[%emt 0:00:09]} 39. Ra8 {[%emt 0:00:08]} Rf7 {[%emt 0:00:04]} 40. Rxf7+ {
[%emt 0:00:21]} Kxf7 {[%emt 0:00:02]} 41. Rxa6 {[%emt 0:00:02]} Ne6 {[%emt 0:
00:05]} 42. Bh4 {[%emt 0:00:20]} g5 {[%emt 0:00:04]} 43. Bg3 {[%emt 0:00:07]}
Ke7 {[%emt 0:00:01]} 44. Ra4 {[%emt 0:00:11]} Nc5 {[%emt 0:00:02]} 45. Rc4 {
[%emt 0:00:08]} Ra7 {[%emt 0:00:02]} 46. Bxe5 {[%emt 0:00:05]} Rxa2 {[%emt 0:
00:15]} 47. Bg3 {[%emt 0:00:12]} Nd7 {[%emt 0:00:15]} 48. Rc6 {[%emt 0:00:17]}
Rd2 {[%emt 0:00:08]} 49. Kh3 {[%emt 0:00:10]} Rd4 {[%emt 0:00:04]} 50. Ra6 {
[%emt 0:00:09]} Ke6 {[%emt 0:00:11]} 51. Ra8 {[%emt 0:00:10]} Nf6 {[%emt 0:00:
09]} 52. Rd8 {[%emt 0:00:11]} Nxe4 {[%emt 0:00:05]} 53. Kh2 {[%emt 0:00:09]}
Rd3 {[%emt 0:00:19]} 54. Re8+ {[%emt 0:00:07]} Kd5 {[%emt 0:00:04]} 55. Be1 {
[%emt 0:00:06]} Re3 {[%emt 0:00:06]} 56. Bb4 {[%emt 0:00:17]} Nf6 {[%emt 0:00:
18]} 57. Rxe3 {[%emt 0:00:11]} Nxg4+ {[%emt 0:00:01]} 58. Kg3 {[%emt 0:00:02]}
Nxe3 {[%emt 0:00:02]} 59. Kf3 {[%emt 0:00:05]} Nxg2 {[%emt 0:00:57] Ke4+}
1/2-1/2

[Event "16th EWICC 2015"]
[Site "Kutaisi"]
[Date "2015.06.02"]
[Round "8"]
[White "Mikadze, Miranda"]
[Black "Gaprindashvili, Nona"]
[Result "0-1"]
[ECO "B00"]
[WhiteElo "2233"]
[BlackElo "2302"]
[Annotator "Robot 11"]
[PlyCount "74"]
[EventDate "2015.??.??"]
[EventCountry "GEO"]
[TimeControl "900+10"]

1. e4 {[%emt 0:00:03]} b6 {[%emt 0:00:00]} 2. d4 {[%emt 0:00:02]} Bb7 {[%emt 0:
00:01]} 3. Bd3 {[%emt 0:00:10]} g6 {[%emt 0:00:03]} 4. Nf3 {[%emt 0:00:05]} Bg7
{[%emt 0:00:02]} 5. O-O {[%emt 0:00:04]} e6 {[%emt 0:00:01]} 6. c4 {[%emt 0:00:
53]} d6 {[%emt 0:00:05]} 7. Nc3 {[%emt 0:00:03]} c5 {[%emt 0:00:23]} 8. Bc2 {
[%emt 0:00:20]} Ne7 {[%emt 0:01:16]} 9. dxc5 {[%emt 0:02:58]} bxc5 {[%emt 0:00:
22]} 10. Nb5 {[%emt 0:00:20]} Nc8 {[%emt 0:00:12]} 11. Bf4 {[%emt 0:00:18]} e5
{[%emt 0:00:32]} 12. Bg5 {[%emt 0:00:48]} f6 {[%emt 0:01:45]} 13. Be3 {[%emt 0:
01:25]} O-O {[%emt 0:02:35]} 14. b4 {[%emt 0:01:40]} a6 {[%emt 0:02:34]} 15.
Nc3 {[%emt 0:00:02]} cxb4 {[%emt 0:00:02]} 16. Nd5 {[%emt 0:00:04]} Nc6 {[%emt
0:00:04]} 17. c5 {[%emt 0:02:28]} Kh8 {[%emt 0:00:10]} 18. cxd6 {[%emt 0:00:38]
} Qxd6 {[%emt 0:00:19]} 19. Nd2 {[%emt 0:00:29]} Nd4 {[%emt 0:03:31]} 20. Nb3 {
[%emt 0:01:19]} Bxd5 {[%emt 0:01:15]} 21. exd5 {[%emt 0:00:42]} Nxb3 {[%emt 0:
00:44]} 22. Bxb3 {[%emt 0:00:01]} Ne7 {[%emt 0:00:06]} 23. Rc1 {[%emt 0:01:11]}
Rfc8 {[%emt 0:00:02]} 24. Qd3 {[%emt 0:00:25]} Nf5 {[%emt 0:00:57]} 25. Bd2 {
[%emt 0:00:34]} Nd4 {[%emt 0:00:03]} 26. Rc4 {[%emt 0:00:04]} Rxc4 {[%emt 0:00:
42]} 27. Qxc4 {[%emt 0:00:43]} a5 {[%emt 0:00:02]} 28. Rc1 {[%emt 0:00:15]} Bf8
{[%emt 0:00:34]} 29. Ba4 {[%emt 0:00:34]} Rd8 {[%emt 0:00:08]} 30. Kf1 {[%emt
0:00:36]} Be7 {[%emt 0:00:26]} 31. Bh6 {[%emt 0:00:21]} g5 {[%emt 0:00:21]} 32.
h4 {[%emt 0:00:12]} Nf5 {[%emt 0:00:19]} 33. Qe4 {[%emt 0:00:28]} Nxh6 {[%emt
0:00:06]} 34. hxg5 {[%emt 0:00:01]} f5 {[%emt 0:00:17]} 35. Qh4 {[%emt 0:00:12]
} Nf7 {[%emt 0:00:07]} 36. Bb3 {[%emt 0:00:17]} Bxg5 {[%emt 0:00:03]} 37. Qh5 {
[%emt 0:00:01]} Bxc1 {[%emt 0:00:05]} 0-1

[Event "16th EWICC 2015"]
[Site "Kutaisi"]
[Date "2015.06.02"]
[Round "8"]
[White "Nikoladze, Sopio"]
[Black "Gevorgyan, Maria"]
[Result "1-0"]
[ECO "D04"]
[WhiteElo "2155"]
[BlackElo "2190"]
[Annotator "Robot 11"]
[PlyCount "109"]
[EventDate "2015.??.??"]
[EventCountry "GEO"]
[TimeControl "900+10"]

1. d4 {[%emt 0:00:01]} d5 {[%emt 0:00:03]} 2. Nf3 {[%emt 0:00:02]} Nf6 {[%emt
0:00:02]} 3. e3 {[%emt 0:00:00]} c6 {[%emt 0:00:11]} 4. Bd3 {[%emt 0:00:09]}
Ne4 {[%emt 0:00:22]} 5. Nbd2 {[%emt 0:00:09]} f5 {[%emt 0:00:28]} 6. Ne5 {
[%emt 0:00:19]} Nf6 {[%emt 0:00:26]} 7. c4 {[%emt 0:00:05]} e6 {[%emt 0:00:02]}
8. O-O {[%emt 0:00:12]} Bd6 {[%emt 0:00:01]} 9. b3 {[%emt 0:00:12]} O-O {[%emt
0:00:21]} 10. Bb2 {[%emt 0:00:03]} Bd7 {[%emt 0:00:09]} 11. f3 {[%emt 0:00:13]}
Be8 {[%emt 0:00:03]} 12. g4 {[%emt 0:00:11]} fxg4 {[%emt 0:02:32]} 13. fxg4 {
[%emt 0:00:05]} Nfd7 {[%emt 0:01:06]} 14. Rxf8+ {[%emt 0:00:22]} Nxf8 {[%emt 0:
00:12]} 15. Qf3 {[%emt 0:00:13]} Qg5 {[%emt 0:00:23]} 16. Rf1 {[%emt 0:00:35]}
Nbd7 {[%emt 0:00:42]} 17. Rf2 {[%emt 0:01:33]} Bxe5 {[%emt 0:01:50]} 18. dxe5 {
[%emt 0:00:06]} Ng6 {[%emt 0:00:07]} 19. cxd5 {[%emt 0:00:27]} cxd5 {[%emt 0:
00:02]} 20. Bb5 {[%emt 0:00:33]} Qe7 {[%emt 0:02:03]} 21. Bxd7 {[%emt 0:00:32]}
Bxd7 {[%emt 0:00:33]} 22. Bd4 {[%emt 0:00:01]} Rf8 {[%emt 0:00:15]} 23. Qg3 {
[%emt 0:00:08]} b6 {[%emt 0:00:02]} 24. Nf3 {[%emt 0:00:05]} Qa3 {[%emt 0:00:
45]} 25. h4 {[%emt 0:00:07]} Ne7 {[%emt 0:00:18]} 26. Ng5 {[%emt 0:00:18]} Nc6
{[%emt 0:00:32]} 27. Bb2 {[%emt 0:00:10]} Qc5 {[%emt 0:00:19]} 28. h5 {[%emt 0:
00:13]} h6 {[%emt 0:00:07]} 29. Nh3 {[%emt 0:00:04]} Rxf2 {[%emt 0:01:47]} 30.
Qxf2 {[%emt 0:00:02]} Qb4 {[%emt 0:00:29]} 31. Bd4 {[%emt 0:01:09]} Qe7 {[%emt
0:01:06]} 32. Kg2 {[%emt 0:00:13]} b5 {[%emt 0:00:26]} 33. Kg3 {[%emt 0:00:05]}
b4 {[%emt 0:00:26]} 34. Nf4 {[%emt 0:00:03]} Be8 {[%emt 0:00:07]} 35. Qc2 {
[%emt 0:00:05]} a5 {[%emt 0:00:42]} 36. Qe2 {[%emt 0:00:40]} Bf7 {[%emt 0:00:
47]} 37. Qa6 {[%emt 0:00:19]} Qc7 {[%emt 0:00:14]} 38. Bb6 {[%emt 0:00:18]} Qb8
{[%emt 0:00:13]} 39. Bxa5 {[%emt 0:00:14]} Qxe5 {[%emt 0:00:33]} 40. Qc8+ {
[%emt 0:00:21]} Kh7 {[%emt 0:00:03]} 41. Bb6 {[%emt 0:00:01]} d4 {[%emt 0:00:
13]} 42. Qxc6 {[%emt 0:00:05]} Qxe3+ {[%emt 0:00:03]} 43. Qf3 {[%emt 0:00:01]}
Qe1+ {[%emt 0:00:08]} 44. Kh3 {[%emt 0:00:05]} e5 {[%emt 0:00:08]} 45. Ng6 {
[%emt 0:00:02]} Qc3 {[%emt 0:00:24]} 46. Nxe5 {[%emt 0:00:13]} Bd5 {[%emt 0:00:
28]} 47. Qxc3 {[%emt 0:00:06]} dxc3 {[%emt 0:00:12]} 48. Nd3 {[%emt 0:00:05]}
Be4 {[%emt 0:00:08]} 49. Nc1 {[%emt 0:00:02]} Kg8 {[%emt 0:00:07]} 50. Bc5 {
[%emt 0:00:02]} Kf7 {[%emt 0:00:01]} 51. Bxb4 {[%emt 0:00:01]} c2 {[%emt 0:00:
01]} 52. Kg3 {[%emt 0:00:02]} Ke6 {[%emt 0:00:01]} 53. Kf4 {[%emt 0:00:01]} Kd5
{[%emt 0:00:01]} 54. Bc3 {[%emt 0:00:03]} Bh7 {[%emt 0:00:06]} 55. Bxg7 1-0

[Event "16th EWICC 2015"]
[Site "Kutaisi"]
[Date "2015.06.02"]
[Round "8"]
[White "Paehtz, Elisabeth"]
[Black "Kosteniuk, Alexandra"]
[Result "0-1"]
[ECO "A06"]
[WhiteElo "2473"]
[BlackElo "2530"]
[Annotator "Robot 11"]
[PlyCount "90"]
[EventDate "2015.??.??"]
[EventCountry "GEO"]
[TimeControl "900+10"]

1. Nf3 {[%emt 0:00:01]} d5 {[%emt 0:00:06]} 2. c4 {[%emt 0:00:01]} e6 {[%emt 0:
00:09]} 3. b3 {[%emt 0:00:03]} Nf6 {[%emt 0:00:30]} 4. Bb2 {[%emt 0:00:07]} a5
{[%emt 0:00:03]} 5. Nc3 {[%emt 0:00:28]} Nc6 {[%emt 0:01:12]} 6. e3 {[%emt 0:
00:24]} d4 {[%emt 0:00:26]} 7. exd4 {[%emt 0:00:02]} Nxd4 {[%emt 0:00:01]} 8.
Nxd4 {[%emt 0:00:09]} Qxd4 {[%emt 0:00:01]} 9. Be2 {[%emt 0:00:09]} Bc5 {[%emt
0:01:20]} 10. O-O {[%emt 0:00:19]} Qd8 {[%emt 0:00:02]} 11. Nb5 {[%emt 0:01:01]
} c6 {[%emt 0:01:04]} 12. d4 {[%emt 0:00:01]} Bb6 {[%emt 0:00:46]} 13. Na3 {
[%emt 0:00:07]} O-O {[%emt 0:00:37]} 14. Nc2 {[%emt 0:00:06]} a4 {[%emt 0:00:
08]} 15. b4 {[%emt 0:01:26]} Bc7 {[%emt 0:02:38]} 16. Bf3 {[%emt 0:00:08]} Nd7
{[%emt 0:00:48]} 17. Re1 {[%emt 0:00:21]} Qg5 {[%emt 0:00:23]} 18. g3 {[%emt 0:
00:41]} Rd8 {[%emt 0:00:02]} 19. Qe2 {[%emt 0:00:23]} Re8 {[%emt 0:00:50]} 20.
Bg2 {[%emt 0:00:17]} Nf6 {[%emt 0:00:14]} 21. Rad1 {[%emt 0:01:04]} Bd7 {[%emt
0:00:17]} 22. a3 {[%emt 0:00:44]} h6 {[%emt 0:00:01]} 23. f4 {[%emt 0:00:29]}
Qg4 {[%emt 0:00:02]} 24. Qf2 {[%emt 0:00:38]} Qg6 {[%emt 0:00:05]} 25. Qe2 {
[%emt 0:01:14]} Nh5 {[%emt 0:00:23]} 26. Bc1 {[%emt 0:00:23]} Nf6 {[%emt 0:00:
16]} 27. Rf1 {[%emt 0:00:24]} Rad8 {[%emt 0:00:35]} 28. Ne1 {[%emt 0:00:07]} b5
{[%emt 0:00:09]} 29. Nd3 {[%emt 0:00:20]} bxc4 {[%emt 0:00:33]} 30. Ne5 {[%emt
0:00:21]} Bxe5 {[%emt 0:00:41]} 31. fxe5 {[%emt 0:00:15]} Nd5 {[%emt 0:00:01]}
32. Be4 {[%emt 0:00:03]} Nc3 {[%emt 0:00:02]} 33. Qxc4 {[%emt 0:00:57]} Nxe4 {
[%emt 0:00:05]} 34. Rf4 {[%emt 0:00:16]} Ng5 {[%emt 0:00:09]} 35. Kh1 {[%emt 0:
00:10]} c5 {[%emt 0:00:04]} 36. d5 {[%emt 0:00:53]} exd5 {[%emt 0:00:08]} 37.
Qxc5 {[%emt 0:00:03]} Ne6 {[%emt 0:00:07]} 38. Qf2 {[%emt 0:00:03]} Nxf4 {
[%emt 0:00:03]} 39. Bxf4 {[%emt 0:00:02]} d4 {[%emt 0:00:08]} 40. h4 {[%emt 0:
00:02]} Bc6+ {[%emt 0:00:07]} 41. Kh2 {[%emt 0:00:01]} d3 {[%emt 0:00:02]} 42.
Rd2 {[%emt 0:00:04]} Qe4 {[%emt 0:00:07]} 43. Rd1 {[%emt 0:00:05]} Qe2 {[%emt
0:00:09]} 44. Rd2 {[%emt 0:00:09]} Qxf2+ {[%emt 0:00:05]} 45. Rxf2 {[%emt 0:00:
01]} Rc8 {[%emt 0:00:08]} 0-1

[Event "16th EWICC 2015"]
[Site "Kutaisi"]
[Date "2015.06.02"]
[Round "8"]
[White "Schleining, Zoya"]
[Black "Ibrahimova, Sabina"]
[Result "1/2-1/2"]
[ECO "E61"]
[WhiteElo "2375"]
[BlackElo "2272"]
[Annotator "Robot 11"]
[PlyCount "93"]
[EventDate "2015.??.??"]
[EventCountry "GEO"]
[TimeControl "900+10"]

1. d4 {[%emt 0:00:01]} Nf6 {[%emt 0:00:02]} 2. c4 {[%emt 0:00:02]} g6 {[%emt 0:
00:01]} 3. Nc3 {[%emt 0:00:02]} Bg7 {[%emt 0:00:01]} 4. Nf3 {[%emt 0:00:02]} d6
{[%emt 0:00:03]} 5. Bf4 {[%emt 0:00:05]} O-O {[%emt 0:00:05]} 6. h3 {[%emt 0:
00:07]} Nbd7 {[%emt 0:00:18]} 7. e3 {[%emt 0:00:03]} Qe8 {[%emt 0:00:07]} 8.
Be2 {[%emt 0:00:11]} e5 {[%emt 0:00:07]} 9. Bh2 {[%emt 0:00:04]} Qe7 {[%emt 0:
00:03]} 10. O-O {[%emt 0:00:06]} b6 {[%emt 0:00:15]} 11. Qc2 {[%emt 0:01:25]}
Bb7 {[%emt 0:00:06]} 12. Rfd1 {[%emt 0:00:31]} Rac8 {[%emt 0:02:27]} 13. b4 {
[%emt 0:01:20]} Rfe8 {[%emt 0:01:10]} 14. a3 {[%emt 0:03:38]} h6 {[%emt 0:01:
13]} 15. dxe5 {[%emt 0:00:59]} dxe5 {[%emt 0:00:31]} 16. e4 {[%emt 0:00:27]}
Nh5 {[%emt 0:02:28]} 17. Qa4 {[%emt 0:00:24]} Ndf6 {[%emt 0:01:08]} 18. Bxe5 {
[%emt 0:01:32]} Nxe4 {[%emt 0:00:38]} 19. Bxg7 {[%emt 0:00:22]} Kxg7 {[%emt 0:
00:40]} 20. Nxe4 {[%emt 0:00:28]} Qxe4 {[%emt 0:00:48]} 21. Bf1 {[%emt 0:01:05]
} Qf5 {[%emt 0:04:27]} 22. Qd7 {[%emt 0:01:19]} Qf6 {[%emt 0:01:43]} 23. Nh2 {
[%emt 0:01:09]} Red8 {[%emt 0:00:14]} 24. Qg4 {[%emt 0:00:02]} Nf4 {[%emt 0:00:
06]} 25. Rxd8 {[%emt 0:00:36]} Rxd8 {[%emt 0:00:01]} 26. Re1 {[%emt 0:00:05]}
h5 {[%emt 0:00:18]} 27. Qg3 {[%emt 0:00:03]} Rd2 {[%emt 0:00:08]} 28. Qe3 {
[%emt 0:00:20]} Ra2 {[%emt 0:00:13]} 29. g3 {[%emt 0:00:49]} Ne6 {[%emt 0:00:
09]} 30. Bg2 {[%emt 0:00:07]} Bxg2 {[%emt 0:00:08]} 31. Kxg2 {[%emt 0:00:02]}
Qb2 {[%emt 0:00:07]} 32. Nf3 {[%emt 0:00:11]} Rxa3 {[%emt 0:00:04]} 33. Qe5+ {
[%emt 0:00:13]} Qxe5 {[%emt 0:00:02]} 34. Nxe5 {[%emt 0:00:02]} a5 {[%emt 0:00:
10]} 35. b5 {[%emt 0:00:30]} Ra2 {[%emt 0:00:17]} 36. Rd1 {[%emt 0:00:29]} Re2
{[%emt 0:00:24]} 37. Nd3 {[%emt 0:00:43]} a4 {[%emt 0:00:09]} 38. Ra1 {[%emt 0:
00:08]} Rd2 {[%emt 0:00:10]} 39. Nf4 {[%emt 0:00:16]} Nc5 {[%emt 0:00:12]} 40.
Nd5 {[%emt 0:00:03]} Rc2 {[%emt 0:00:09]} 41. Nxc7 {[%emt 0:00:06]} Rxc4 {
[%emt 0:00:01]} 42. Nd5 {[%emt 0:00:01]} Rd4 {[%emt 0:00:20]} 43. Nxb6 {[%emt
0:00:05]} Rb4 {[%emt 0:00:00]} 44. Ra2 {[%emt 0:00:21]} Rxb5 {[%emt 0:00:20]}
45. Nxa4 {[%emt 0:00:02]} Nxa4 {[%emt 0:00:06]} 46. Rxa4 {[%emt 0:00:02]} Rb3 {
[%emt 0:00:05]} 47. h4 {[%emt 0:00:02]} 1/2-1/2

[Event "16th EWICC 2015"]
[Site "Kutaisi"]
[Date "2015.06.02"]
[Round "8"]
[White "Sviridova, Vlada"]
[Black "Arakhamia-Grant, Ketevan"]
[Result "1/2-1/2"]
[ECO "A58"]
[WhiteElo "2087"]
[BlackElo "2393"]
[Annotator "Robot 11"]
[PlyCount "110"]
[EventDate "2015.??.??"]
[EventCountry "GEO"]
[TimeControl "900+10"]

1. d4 {[%emt 0:00:01]} Nf6 {[%emt 0:00:05]} 2. c4 {[%emt 0:00:01]} c5 {[%emt 0:
00:28]} 3. d5 {[%emt 0:00:04]} b5 {[%emt 0:02:17]} 4. cxb5 {[%emt 0:00:02]} a6
{[%emt 0:00:01]} 5. bxa6 {[%emt 0:00:01]} g6 {[%emt 0:00:01]} 6. Nc3 {[%emt 0:
00:01]} Bg7 {[%emt 0:00:00]} 7. Nf3 {[%emt 0:00:05]} Qa5 {[%emt 0:00:36]} 8.
Bd2 {[%emt 0:02:19]} Bxa6 {[%emt 0:01:27]} 9. g3 {[%emt 0:01:44]} O-O {[%emt 0:
00:18]} 10. Bg2 {[%emt 0:00:01]} d6 {[%emt 0:00:04]} 11. O-O {[%emt 0:00:01]}
Nbd7 {[%emt 0:00:10]} 12. Re1 {[%emt 0:00:21]} Qb6 {[%emt 0:02:58]} 13. Rb1 {
[%emt 0:00:41]} Bc4 {[%emt 0:01:09]} 14. b3 {[%emt 0:01:38]} Bxd5 {[%emt 0:00:
06]} 15. e4 {[%emt 0:01:22]} Bc6 {[%emt 0:01:00]} 16. Qc2 {[%emt 0:00:17]} Qb7
{[%emt 0:02:50]} 17. a4 {[%emt 0:00:23]} Rfb8 {[%emt 0:00:08]} 18. h3 {[%emt 0:
01:01]} Nb6 {[%emt 0:01:06]} 19. Bf1 {[%emt 0:02:22]} Qc7 {[%emt 0:00:31]} 20.
Nb5 {[%emt 0:00:22]} Qb7 {[%emt 0:00:04]} 21. Nc3 {[%emt 0:00:06]} Qd7 {[%emt
0:00:22]} 22. Kh2 {[%emt 0:00:21]} h6 {[%emt 0:00:42]} 23. Nh4 {[%emt 0:00:22]}
c4 {[%emt 0:00:28]} 24. bxc4 {[%emt 0:00:22]} Nxa4 {[%emt 0:00:08]} 25. Nd5 {
[%emt 0:00:34]} Nc5 {[%emt 0:00:21]} 26. Nb6 {[%emt 0:01:13]} Rxb6 {[%emt 0:00:
02]} 27. Rxb6 {[%emt 0:00:02]} Bxe4 {[%emt 0:00:07]} 28. Qc1 {[%emt 0:00:17]}
g5 {[%emt 0:00:27]} 29. Ng2 {[%emt 0:00:04]} Qc7 {[%emt 0:00:20]} 30. Rb4 {
[%emt 0:00:17]} Nd3 {[%emt 0:00:10]} 31. Bxd3 {[%emt 0:00:04]} Bxd3 {[%emt 0:
00:02]} 32. Bc3 {[%emt 0:00:11]} Ra2 {[%emt 0:00:15]} 33. Rb2 {[%emt 0:00:12]}
Rxb2 {[%emt 0:00:53]} 34. Bxb2 {[%emt 0:00:03]} e6 {[%emt 0:00:39]} 35. Ne3 {
[%emt 0:00:36]} Qc6 {[%emt 0:00:05]} 36. Qd2 {[%emt 0:00:50]} Bg6 {[%emt 0:00:
10]} 37. Qe2 {[%emt 0:00:52]} h5 {[%emt 0:00:03]} 38. Ng2 {[%emt 0:00:24]} Qc5
{[%emt 0:00:20]} 39. Qe3 {[%emt 0:00:11]} Qf5 {[%emt 0:00:12]} 40. Rd1 {[%emt
0:00:33]} d5 {[%emt 0:00:14]} 41. Bxf6 {[%emt 0:00:05]} Bxf6 {[%emt 0:00:02]}
42. cxd5 {[%emt 0:00:01]} exd5 {[%emt 0:00:05]} 43. f4 {[%emt 0:00:23]} g4 {
[%emt 0:00:18]} 44. Qe8+ {[%emt 0:00:11]} Kg7 {[%emt 0:00:01]} 45. Ne3 {[%emt
0:00:05]} Qe6 {[%emt 0:00:19]} 46. Qxe6 {[%emt 0:00:06]} fxe6 {[%emt 0:00:01]}
47. f5 {[%emt 0:00:02]} d4 {[%emt 0:00:19]} 48. fxg6 {[%emt 0:00:46]} dxe3 {
[%emt 0:00:02]} 49. hxg4 {[%emt 0:00:03]} hxg4 {[%emt 0:00:01]} 50. Re1 {[%emt
0:00:03]} Bd4 {[%emt 0:00:09]} 51. Kg2 {[%emt 0:00:04]} Kxg6 {[%emt 0:00:04]}
52. Kf1 {[%emt 0:00:01]} Kf5 {[%emt 0:00:15]} 53. Ke2 {[%emt 0:00:02]} Ke4 {
[%emt 0:00:06]} 54. Rf1 {[%emt 0:00:03]} Be5 {[%emt 0:00:10]} 55. Rg1 {[%emt 0:
00:04]} Bd6 {[%emt 0:00:07]} 1/2-1/2

[Event "16th EWICC 2015"]
[Site "Kutaisi"]
[Date "2015.06.02"]
[Round "8"]
[White "Zaksaite, Salomeja"]
[Black "Khurtsidze, Nino"]
[Result "0-1"]
[ECO "B43"]
[WhiteElo "2203"]
[BlackElo "2451"]
[Annotator "Robot 11"]
[PlyCount "76"]
[EventDate "2015.??.??"]
[EventCountry "GEO"]
[TimeControl "900+10"]

1. e4 {[%emt 0:00:01]} c5 {[%emt 0:00:01]} 2. Nf3 {[%emt 0:00:07]} e6 {[%emt 0:
00:01]} 3. d4 {[%emt 0:00:03]} cxd4 {[%emt 0:00:01]} 4. Nxd4 {[%emt 0:00:01]}
a6 {[%emt 0:00:03]} 5. Nc3 {[%emt 0:00:07]} Qc7 {[%emt 0:00:04]} 6. g3 {[%emt
0:00:02]} Bb4 {[%emt 0:00:10]} 7. Bd2 {[%emt 0:00:14]} Nf6 {[%emt 0:00:13]} 8.
Bg2 {[%emt 0:00:01]} O-O {[%emt 0:00:13]} 9. O-O {[%emt 0:00:54]} Be7 {[%emt 0:
00:03]} 10. Re1 {[%emt 0:00:12]} d6 {[%emt 0:00:02]} 11. g4 {[%emt 0:00:47]}
Nc6 {[%emt 0:00:14]} 12. Nxc6 {[%emt 0:00:19]} bxc6 {[%emt 0:00:01]} 13. g5 {
[%emt 0:00:01]} Nd7 {[%emt 0:00:04]} 14. Qh5 {[%emt 0:00:05]} e5 {[%emt 0:00:
45]} 15. Re3 {[%emt 0:00:36]} Nc5 {[%emt 0:01:17]} 16. Bh3 {[%emt 0:01:15]} Ne6
{[%emt 0:01:14]} 17. Rg3 {[%emt 0:00:16]} Nf4 {[%emt 0:02:13]} 18. Bxf4 {[%emt
0:00:19]} exf4 {[%emt 0:00:02]} 19. Rf3 {[%emt 0:02:08]} g6 {[%emt 0:00:18]}
20. Qh4 {[%emt 0:00:53]} Qd8 {[%emt 0:00:23]} 21. Qxf4 {[%emt 0:00:29]} Bxg5 {
[%emt 0:00:02]} 22. Qg3 {[%emt 0:00:06]} Bxh3 {[%emt 0:00:19]} 23. Qxh3 {[%emt
0:00:00]} Rb8 {[%emt 0:00:09]} 24. b3 {[%emt 0:00:08]} Qe7 {[%emt 0:00:06]} 25.
Rd1 {[%emt 0:00:52]} Bf6 {[%emt 0:00:40]} 26. Rfd3 {[%emt 0:00:42]} Rfd8 {
[%emt 0:01:03]} 27. f3 {[%emt 0:01:16]} d5 {[%emt 0:00:20]} 28. Kh1 {[%emt 0:
01:08]} Qb4 {[%emt 0:03:29]} 29. Na4 {[%emt 0:04:43]} dxe4 {[%emt 0:00:17]} 30.
Rxd8+ {[%emt 0:00:01]} Rxd8 {[%emt 0:00:20]} 31. Rxd8+ {[%emt 0:00:01]} Bxd8 {
[%emt 0:00:01]} 32. Qc8 {[%emt 0:01:12]} Qe1+ {[%emt 0:00:07]} 33. Kg2 {[%emt
0:00:00]} Qd2+ {[%emt 0:00:07]} 34. Kg3 {[%emt 0:00:07]} e3 {[%emt 0:00:44]}
35. Nc3 {[%emt 0:00:37]} Kg7 {[%emt 0:00:36]} 36. Ne2 {[%emt 0:00:47]} Qe1+ {
[%emt 0:00:51]} 37. Kf4 {[%emt 0:00:10]} Qxe2 {[%emt 0:00:09]} 38. Qxd8 {[%emt
0:00:02]} Qd2 {[%emt 0:00:04]} 0-1